bitfinex/quotes_SOLUSD_20251125
["timestamp","ask_amount","ask_price","bid_price","bid_amount"]
[1764097330312,8.35681437,136.54,136.5,0.67]
[1764097331224,16.308864,136.56,136.5,5.06681437]
[1764097331421,0.72,136.61,136.53,41.94425548]
[1764097331725,3.24,136.6,136.57,4.39681437]
[1764097332592,3.96,136.6,136.57,7.3219]
[1764097332997,8.35681437,136.6,136.57,7.3219]
[1764097334518,0.72,136.59,136.57,7.3219]
[1764097334823,0.72,136.59,136.56,7.32278851]
[1764097335025,5.11681437,136.59,136.56,7.32278851]
[1764097337027,7.63681437,136.6,136.56,25.6297598]
[1764097337210,0.72,136.59,136.56,25.6297598]
[1764097337411,3.24,136.58,136.56,25.6297598]
[1764097337928,3.24,136.58,136.56,7.32278851]
[1764097339208,7.32031103,136.62,136.57,5.06681437]
[1764097339416,3.24,136.61,136.58,4.39681437]
[1764097339726,3.24,136.61,136.57,5.06681437]
[1764097339931,3.96,136.61,136.57,5.06681437]
[1764097340232,3.96,136.61,136.58,0.67]
[1764097340416,8.35681437,136.61,136.57,0.67]
[1764097340731,8.35681437,136.61,136.57,7.99225232]
[1764097341527,7.63681437,136.61,136.57,7.99225232]
[1764097341734,5.11681437,136.6,136.57,7.32225232]
[1764097341936,0.72,136.6,136.57,7.99225232]
[1764097343131,0.72,136.6,136.57,7.32225232]
[1764097343432,5.11681437,136.6,136.57,7.32225232]
[1764097343833,4.39681437,136.59,136.56,7.32263025]
[1764097344014,0.69,136.59,136.54,18.30895764]
[1764097344215,5.08681437,136.58,136.54,18.97895764]
[1764097344415,7.63681437,136.57,136.54,7.32386113]
[1764097344614,4.39681437,136.56,136.53,7.32419767]
[1764097344838,4.39681437,136.55,136.53,7.32419767]
[1764097345143,4.39681437,136.54,136.53,7.32419767]
[1764097345324,5.08681437,136.55,136.53,7.32419767]
[1764097346520,5.08681437,136.54,136.5,4.39681437]
[1764097346859,7.63681437,136.53,136.5,7.99600732]
[1764097347021,4.39681437,136.52,136.48,0.67]
[1764097347222,4.39681437,136.51,136.47,0.67]
[1764097347421,4.39681437,136.5,136.46,7.32815477]
[1764097347622,3.24,136.49,136.47,0.67]
[1764097348254,5.08681437,136.48,136.45,7.32857548]
[1764097348445,5.08681437,136.48,136.44,16.408864]
[1764097348446,4.39681437,136.47,136.44,7.42901111]
[1764097348745,4.39681437,136.47,136.44,0.77]
[1764097349308,5.08681437,136.48,136.44,0.77]
[1764097350525,4.39681437,136.47,136.45,7.32869182]
[1764097350736,4.39681437,136.47,136.44,0.77]
[1764097351132,4.39681437,136.47,136.44,8.09901391]
[1764097351318,5.08681437,136.48,136.44,26.42208632]
[1764097352016,5.08681437,136.48,136.45,0.67]
[1764097352217,0.69,136.48,136.45,0.67]
[1764097352519,5.08681437,136.48,136.44,25.75208632]
[1764097352719,5.08681437,136.48,136.45,0.67]
[1764097353037,7.32614249,136.51,136.45,0.67]
[1764097353221,3.24,136.5,136.48,4.39681437]
[1764097353560,3.24,136.5,136.45,0.67]
[1764097353561,3.24,136.49,136.45,66.86681437]
[1764097353833,4.39681437,136.47,136.44,7.42901391]
[1764097354031,4.39681437,136.47,136.44,0.1]
[1764097354338,5.08681437,136.47,136.44,0.1]
[1764097354942,4.39681437,136.47,136.44,0.1]
[1764097355150,4.39681437,136.45,136.44,0.1]
[1764097355352,3.24,136.45,136.4,0.1]
[1764097355544,4.39681437,136.41,136.39,0.1]
[1764097355741,7.63681437,136.4,136.39,0.1]
[1764097356143,11.26572183,136.4,136.39,0.1]
[1764097356640,2.93890746,136.4,136.39,0.1]
[1764097356863,3.24,136.4,136.39,0.1]
[1764097358159,3.24,136.4,136.39,0.77]
[1764097358746,3.24,136.4,136.39,7.43191582]
[1764097359128,3.24,136.4,136.39,0.1]
[1764097359334,3.24,136.4,136.39,7.43191582]
[1764097360946,12.39471711,136.46,136.39,38.1364225]
[1764097361134,3.24,136.45,136.41,11.70471711]
[1764097361643,3.24,136.45,136.41,12.37471711]
[1764097361856,3.93,136.45,136.41,0.67]
[1764097362162,14.94471711,136.45,136.42,0.67]
[1764097362379,15.63471711,136.45,136.4,12.37471711]
[1764097362582,0.69,136.44,136.4,0.67]
[1764097362782,12.39471711,136.44,136.41,7.33084084]
[1764097362964,11.70471711,136.42,136.39,0.1]
[1764097363155,3.24,136.41,136.39,8.10189735]
[1764097363351,15.63471711,136.41,136.39,0.1]
[1764097363561,12.39471711,136.4,136.39,0.1]
[1764097364883,19.7260954,136.4,136.39,0.1]
[1764097365380,12.39471711,136.4,136.39,0.1]
[1764097365567,11.70471711,136.4,136.39,0.1]
[1764097365962,12.39471711,136.4,136.39,0.1]
[1764097366365,19.7260954,136.4,136.39,0.1]
[1764097367382,31.77604032,136.4,136.39,0.1]
[1764097368871,43.48075743,136.4,136.39,0.1]
[1764097369273,31.77604032,136.4,136.39,0.1]
[1764097370088,40.75352603,136.4,136.39,0.1]
[1764097370593,48.08490432,136.4,136.39,0.1]
[1764097372493,47.39490432,136.4,136.39,0.1]
[1764097372666,48.08490432,136.4,136.39,0.1]
[1764097372868,47.39490432,136.4,136.39,0.1]
[1764097373092,48.08490432,136.4,136.39,0.1]
[1764097374287,31.77604032,136.4,136.39,0.1]
[1764097374679,43.10411074,136.4,136.39,0.1]
[1764097375274,39.86411074,136.4,136.39,0.1]
[1764097375579,43.10411074,136.4,136.39,0.1]
[1764097375786,52.76758966,136.4,136.39,0.1]
[1764097376107,25.11880892,136.39,136.38,0.1]
[1764097376287,32.53273245,136.39,136.38,0.1]
[1764097377367,39.86464827,136.39,136.38,0.1]
[1764097377795,8.80994492,136.35,136.3,0.1]
[1764097377978,3.24,136.34,136.3,0.1]
[1764097378185,9.96392353,136.33,136.31,0.67]
[1764097378689,6.72392353,136.32,136.3,0.1]
[1764097379002,3.24,136.33,136.3,0.77]
[1764097379298,6.72392353,136.32,136.3,0.77]
[1764097379502,7.33579901,136.32,136.3,0.1]
[1764097379676,6.72392353,136.31,136.3,0.76]
[1764097380383,6.72392353,136.31,136.3,0.1]
[1764097380898,3.24,136.31,136.3,0.76]
[1764097381142,9.96392353,136.31,136.3,0.1]
[1764097381274,3.24,136.31,136.3,0.1]
[1764097381475,9.96392353,136.31,136.3,0.1]
[1764097381895,10.62392353,136.31,136.3,0.1]
[1764097382098,9.96392353,136.31,136.3,0.1]
[1764097382397,10.62392353,136.31,136.3,0.1]
[1764097382577,9.96392353,136.31,136.3,0.1]
[1764097382777,17.30014244,136.31,136.3,0.1]
[1764097383497,9.96392353,136.31,136.3,0.1]
[1764097385196,10.57621891,136.31,136.3,0.1]
[1764097385382,17.30014244,136.31,136.3,0.1]
[1764097386110,10.57621891,136.31,136.3,0.1]
[1764097386405,17.30014244,136.31,136.3,0.1]
[1764097386786,9.96392353,136.31,136.3,0.1]
[1764097387487,17.30014244,136.31,136.3,0.1]
[1764097387689,17.96014244,136.31,136.3,0.1]
[1764097388208,26.77008736,136.31,136.3,0.1]
[1764097388502,8.80994492,136.3,136.24,3.50679866]
[1764097388710,6.72392353,136.25,136.24,2.84679866]
[1764097388903,9.96392353,136.25,136.24,2.84679866]
[1764097389813,17.96337307,136.25,136.24,2.84679866]
[1764097390183,7.99944954,136.25,136.24,2.84679866]
[1764097390405,43.08218199,136.25,136.24,2.84679866]
[1764097390601,31.03223707,136.25,136.24,2.84679866]
[1764097390916,9.96392353,136.25,136.24,3.50679866]
[1764097391278,3.24,136.25,136.24,3.50679866]
[1764097391591,3.26,136.25,136.24,3.50679866]
[1764097391793,9.98392353,136.25,136.24,3.50679866]
[1764097392210,3.26,136.25,136.24,3.50679866]
[1764097392412,3.26,136.25,136.24,10.84678691]
[1764097392588,3.26,136.25,136.24,3.50679866]
[1764097392789,3.26,136.25,136.24,10.84678691]
[1764097394805,3.26,136.25,136.24,3.50679866]
[1764097395113,3.26,136.25,136.24,10.84678691]
[1764097395486,6.72392353,136.28,136.24,10.84678691]
[1764097395810,9.98392353,136.27,136.25,0.66]
[1764097396298,3.26,136.27,136.25,0.66]
[1764097396499,9.98392353,136.27,136.25,0.66]
[1764097397611,3.26,136.27,136.25,0.66]
[1764097397792,9.98392353,136.27,136.25,0.66]
[1764097398110,3.26,136.27,136.25,0.66]
[1764097398685,3.26,136.27,136.25,7.99942225]
[1764097398884,3.26,136.27,136.25,0.66]
[1764097399486,7.3375164,136.29,136.25,0.66]
[1764097399688,3.26,136.28,136.25,7.99930581]
[1764097399890,9.98392353,136.28,136.25,7.99930581]
[1764097400107,9.98392353,136.28,136.25,0.66]
[1764097400307,6.72392353,136.27,136.25,0.66]
[1764097401018,0.66,136.3,136.25,0.66]
[1764097401019,3.26,136.26,136.25,0.66]
[1764097403197,3.26,136.26,136.24,2.84679866]
[1764097403198,13.42695599,136.26,136.24,2.84679866]
[1764097403406,2.82804509,136.25,136.24,2.84679866]
[1764097403719,3.51804509,136.25,136.24,2.84679866]
[1764097404094,10.16749463,136.25,136.24,2.84679866]
[1764097405117,7.33944954,136.25,136.24,2.84679866]
[1764097405417,10.85749463,136.25,136.24,2.84679866]
[1764097405627,19.66743955,136.25,136.24,2.84679866]
[1764097407921,35.97630355,136.25,136.24,2.84679866]
[1764097408899,35.97630355,136.25,136.16,0.7]
[1764097408900,8.80994492,136.21,136.16,0.7]
[1764097409108,2.82804509,136.18,136.16,0.7]
[1764097409312,16.998864,136.22,136.16,0.7]
[1764097409525,2.82804509,136.19,136.16,0.7]
[1764097409702,3.26,136.18,136.16,0.7]
[1764097410707,3.26,136.18,136.12,7.34618292]
[1764097411015,3.26,136.18,136.16,0.7]
[1764097411321,3.26,136.17,136.16,3.52804509]
[1764097412102,3.26,136.17,136.16,10.87234591]
[1764097412297,3.26,136.17,136.16,8.04430082]
[1764097412504,3.26,136.17,136.16,10.87234591]
[1764097412904,3.26,136.17,136.16,8.04430082]
[1764097413223,2.82804509,136.22,136.16,29.23309796]
[1764097413419,3.26,136.21,136.17,0.7]
[1764097413629,3.26,136.2,136.17,0.7]
[1764097414206,2.82804509,136.23,136.18,7.3432222]
[1764097414409,3.26,136.22,136.17,8.04359233]
[1764097414710,3.26,136.21,136.17,26.40299601]
[1764097414912,3.26,136.2,136.19,2.82804509]
[1764097415113,3.26,136.2,136.17,0.7]
[1764097415114,6.08804509,136.2,136.17,0.7]
[1764097415911,2.82804509,136.19,136.13,25.71071769]
[1764097416136,2.82804509,136.17,136.11,0.1]
[1764097416306,0.69,136.19,136.11,0.1]
[1764097416307,3.26,136.16,136.11,0.1]
[1764097416515,6.75098961,136.12,136.11,0.1]
[1764097416829,16.308864,136.16,136.11,8.14699875]
[1764097417031,3.26,136.15,136.12,6.75098961]
[1764097417208,10.01098961,136.15,136.12,0.7]
[1764097417409,3.26,136.15,136.12,0.7]
[1764097417825,10.01098961,136.15,136.12,0.7]
[1764097418123,6.75098961,136.14,136.12,0.7]
[1764097418325,3.26,136.15,136.12,0.7]
[1764097418326,10.01098961,136.15,136.12,8.04643669]
[1764097418709,10.01098961,136.15,136.12,0.7]
[1764097419027,10.01098961,136.15,136.12,8.04644348]
[1764097419215,3.26,136.15,136.12,8.04644348]
[1764097419544,6.75098961,136.14,136.12,0.7]
[1764097420218,10.01098961,136.15,136.12,0.7]
[1764097420610,3.26,136.15,136.12,0.7]
[1764097420936,3.26,136.14,136.12,8.04622668]
[1764097421441,3.26,136.14,136.13,7.45098961]
[1764097421730,3.26,136.14,136.13,0.7]
[1764097421932,3.26,136.14,136.13,14.79690895]
[1764097422131,16.308864,136.2,136.13,14.79690895]
[1764097422310,10.01098961,136.19,136.15,6.75098961]
[1764097422938,6.75098961,136.18,136.15,0.7]
[1764097423109,6.75098961,136.17,136.15,0.7]
[1764097423536,6.75098961,136.17,136.13,8.04591934]
[1764097423825,6.75098961,136.16,136.14,0.7]
[1764097424036,3.26,136.15,136.14,0.7]
[1764097424630,10.01098961,136.15,136.12,0.7]
[1764097424829,6.75098961,136.14,136.12,0.7]
[1764097425214,6.75098961,136.13,136.11,0.1]
[1764097425421,6.75098961,136.13,136.11,0.8]
[1764097426149,6.75098961,136.14,136.11,8.1469846]
[1764097426331,10.01098961,136.15,136.11,8.1469846]
[1764097426525,10.01098961,136.15,136.12,0.7]
[1764097426730,3.26,136.14,136.12,7.45098961]
[1764097427143,3.26,136.14,136.13,0.7]
[1764097427320,3.26,136.17,136.13,7.45098961]
[1764097427528,10.01098961,136.17,136.14,0.7]
[1764097427723,3.26,136.17,136.14,7.45098961]
[1764097427923,23.05985361,136.21,136.17,7.34376147]
[1764097428128,10.01098961,136.2,136.17,7.34376147]
[1764097428333,3.26,136.2,136.17,8.04376147]
[1764097428838,3.26,136.2,136.17,0.7]
[1764097429043,6.75098961,136.19,136.17,0.7]
[1764097429255,6.75098961,136.19,136.15,7.34447163]
[1764097429414,6.75098961,136.19,136.17,0.7]
[1764097429615,6.75098961,136.18,136.15,8.04447163]
[1764097429839,6.75098961,136.18,136.16,0.7]
[1764097430045,3.95,136.2,136.16,8.04426828]
[1764097430223,6.75098961,136.19,136.17,0.7]
[1764097430424,10.01098961,136.2,136.17,0.7]
[1764097430850,6.75098961,136.18,136.15,0.7]
[1764097431055,6.75098961,136.18,136.16,0.7]
[1764097431230,6.75098961,136.17,136.13,8.04591934]
[1764097431548,3.26,136.16,136.14,0.7]
[1764097432534,10.01098961,136.16,136.14,0.7]
[1764097433156,3.26,136.16,136.14,0.7]
[1764097433837,3.26,136.16,136.14,7.45098961]
[1764097434037,3.26,136.16,136.14,0.7]
[1764097434216,3.26,136.16,136.15,0.7]
[1764097434945,3.26,136.16,136.15,7.45098961]
[1764097435945,3.26,136.16,136.15,0.7]
[1764097436131,3.26,136.16,136.15,8.04484024]
[1764097437155,3.26,136.16,136.13,0.7]
[1764097437320,3.26,136.16,136.14,0.7]
[1764097438641,22.34319981,136.16,136.12,8.04627056]
[1764097438847,14.99889894,136.16,136.13,0.7]
[1764097439022,3.26,136.16,136.13,0.7]
[1764097439331,11.73889894,136.17,136.13,0.7]
[1764097439535,3.26,136.15,136.13,0.7]
[1764097440056,3.26,136.15,136.13,8.04546625]
[1764097440367,12.42889894,136.21,136.14,12.41889894]
[1764097440536,11.73889894,136.19,136.15,11.73889894]
[1764097440848,14.99889894,136.2,136.15,12.41889894]
[1764097441184,31.99776294,136.2,136.16,0.68]
[1764097441326,11.73889894,136.19,136.16,0.68]
[1764097441852,15.68889894,136.2,136.16,0.68]
[1764097442165,11.73889894,136.19,136.16,8.0239491]
[1764097442459,11.73889894,136.19,136.16,0.68]
[1764097442637,11.73889894,136.17,136.13,0.68]
[1764097442954,14.99889894,136.16,136.13,0.68]
[1764097443638,11.73889894,136.15,136.11,0.78]
[1764097443824,12.42889894,136.15,136.11,0.78]
[1764097444021,11.73889894,136.14,136.11,62.58]
[1764097444261,19.08449089,136.14,136.11,62.58]
[1764097444642,11.73889894,136.13,136.11,61.9]
[1764097444832,3.26,136.12,136.11,0.1]
[1764097445044,3.26,136.12,136.11,0.78]
[1764097445241,3.26,136.12,136.11,0.1]
[1764097445546,15.68889894,136.12,136.11,0.1]
[1764097445746,14.99889894,136.12,136.11,0.1]
[1764097446155,11.296459,136.12,136.11,0.1]
[1764097446360,23.03535794,136.12,136.11,0.1]
[1764097446769,22.34535794,136.12,136.11,0.1]
[1764097446962,3.26,136.12,136.11,0.1]
[1764097447160,14.99889894,136.12,136.11,0.1]
[1764097447374,15.68889894,136.12,136.11,0.1]
[1764097448051,14.99889894,136.12,136.11,0.1]
[1764097448259,22.34535794,136.12,136.11,0.1]
[1764097448572,23.03535794,136.12,136.11,0.1]
[1764097449147,11.296459,136.12,136.11,0.1]
[1764097449354,19.77535794,136.12,136.11,0.1]
[1764097449571,11.296459,136.12,136.11,0.1]
[1764097449873,23.03535794,136.12,136.11,0.1]
[1764097450172,22.34535794,136.12,136.11,0.1]
[1764097450371,23.03535794,136.12,136.11,0.1]
[1764097450874,22.34535794,136.12,136.11,0.1]
[1764097451977,19.77535794,136.12,136.11,0.1]
[1764097452274,23.65457026,136.14,136.11,0.1]
[1764097452455,14.99889894,136.13,136.11,0.1]
[1764097452657,11.73889894,136.12,136.11,0.1]
[1764097452861,12.42889894,136.12,136.11,0.1]
[1764097453057,11.73889894,136.12,136.11,0.1]
[1764097453252,12.42889894,136.12,136.11,0.1]
[1764097454463,19.77535794,136.12,136.11,0.1]
[1764097454774,16.308864,136.12,136.11,0.1]
[1764097454975,31.30776294,136.12,136.11,0.1]
[1764097455365,31.99776294,136.12,136.11,0.1]
[1764097456467,39.34422194,136.12,136.11,0.1]
[1764097456963,35.39422194,136.12,136.11,0.1]
[1764097457283,10.606459,136.12,136.11,0.1]
[1764097457576,22.34535794,136.12,136.11,0.1]
[1764097458280,19.08535794,136.12,136.11,0.1]
[1764097458587,23.03535794,136.12,136.11,0.1]
[1764097460585,15.72657931,136.12,136.11,0.1]
[1764097461084,24.53652423,136.12,136.11,0.1]
[1764097461288,16.308864,136.09,136.01,7.35216268]
[1764097461468,3.26,136.08,136.05,5.11012031]
[1764097461669,3.26,136.07,136.06,4.43012031]
[1764097461878,3.26,136.07,136.06,0.68]
[1764097462080,3.26,136.07,136.06,5.11012031]
[1764097462390,3.26,136.07,136.06,0.68]
[1764097465276,3.26,136.07,136.04,7.35060959]
[1764097465480,15.03933357,136.07,136.03,7.35108935]
[1764097465695,4.43012031,136.06,136.02,7.35167369]
[1764097465990,4.43012031,136.06,136.03,0.7]
[1764097466200,10.60921326,136.07,136.03,0.7]
[1764097466386,4.43012031,136.06,136.03,0.7]
[1764097466788,7.35131956,136.03,135.99,0.7]
[1764097466976,3.26,136.02,136.0,0.7]
[1764097467174,3.26,136.02,135.98,0.1]
[1764097467175,4.43012031,136.01,135.98,0.1]
[1764097467507,4.43012031,135.99,135.98,0.1]
[1764097467706,7.69012031,135.99,135.98,0.1]
[1764097468731,11.77688892,135.99,135.98,0.1]
[1764097469009,15.03688892,135.99,135.98,0.8]
[1764097469319,15.03688892,135.99,135.98,0.1]
[1764097470510,3.26,135.99,135.98,0.8]
[1764097470685,11.77688892,136.03,135.98,19.93089794]
[1764097470883,3.26,136.02,135.99,8.05326602]
[1764097471099,3.26,136.02,135.99,19.83015494]
[1764097471403,3.26,136.01,136.0,0.7]
[1764097473805,3.26,136.01,136.0,8.05294117]
[1764097474178,3.26,136.01,136.0,0.7]
[1764097475011,3.26,136.01,136.0,8.05294117]
[1764097475832,15.03688892,136.01,135.98,0.8]
[1764097476009,22.38931066,136.01,135.98,0.8]
[1764097476327,11.77688892,135.99,135.98,0.1]
[1764097477202,19.13037079,135.99,135.98,0.1]
[1764097477401,11.77688892,135.99,135.98,0.1]
[1764097477715,3.26,135.99,135.98,0.8]
[1764097479609,15.03688892,135.99,135.98,0.1]
[1764097480219,3.26,135.99,135.98,0.1]
[1764097480540,15.03688892,135.99,135.98,0.1]
[1764097481953,3.26,135.99,135.98,0.1]
[1764097482320,24.25018356,136.03,135.98,0.1]
[1764097482533,11.77688892,136.01,135.98,0.1]
[1764097482704,11.77688892,136.01,135.98,0.8]
[1764097483033,3.26,136.0,135.98,0.8]
[1764097483620,3.26,136.0,135.98,8.15389364]
[1764097484014,3.26,136.0,135.99,0.7]
[1764097485526,22.3901916,136.0,135.98,0.1]
[1764097485731,11.77688892,135.99,135.98,0.1]
[1764097487638,19.72037079,135.99,135.98,0.1]
[1764097488315,7.35314638,136.0,135.98,0.1]
[1764097488509,3.26,135.99,135.98,0.8]
[1764097489120,3.26,135.99,135.98,12.57688892]
[1764097489446,11.77688892,136.05,135.98,19.93091157]
[1764097489641,15.03688892,136.04,135.99,12.47688892]
[1764097490242,15.03688892,136.04,136.0,0.7]
[1764097490431,3.26,136.03,136.0,0.7]
[1764097490640,3.26,136.03,136.0,8.05281673]
[1764097490946,11.77688892,136.02,135.98,8.15390895]
[1764097491141,11.77688892,136.02,135.99,0.7]
[1764097491444,11.77688892,136.01,135.98,0.8]
[1764097491625,3.26,136.0,135.98,0.8]
[1764097491824,11.77688892,135.99,135.98,0.1]
[1764097492216,3.26,135.99,135.98,0.8]
[1764097493036,7.35223251,136.02,135.98,8.15399393]
[1764097493244,15.03688892,136.01,135.98,8.15399393]
[1764097493428,15.03688892,136.01,135.99,0.68]
[1764097493616,11.77688892,136.0,135.99,0.68]
[1764097493817,12.36688892,136.0,135.98,0.1]
[1764097494016,11.77688892,135.99,135.98,0.1]
[1764097494619,19.13037079,135.99,135.98,0.1]
[1764097494816,19.72037079,135.99,135.98,0.1]
[1764097495017,28.53031571,135.99,135.98,0.1]
[1764097496746,31.79031571,135.99,135.98,0.1]
[1764097498537,26.78084867,135.99,135.98,0.1]
[1764097498732,7.3545635,135.97,135.89,6.76742188]
[1764097499051,6.76742188,135.93,135.88,6.76742188]
[1764097499251,3.26,135.92,135.88,6.76742188]
[1764097499431,3.26,135.91,135.85,1.99999999]
[1764097499633,3.26,135.91,135.89,6.76742188]
[1764097499822,3.26,135.91,135.85,55.20794994]
[1764097500361,6.76742188,135.9,135.85,18.40264998]
[1764097500659,6.76742188,135.9,135.85,25.17007186]
[1764097500952,10.02742188,135.91,135.86,7.42742188]
[1764097501160,6.76742188,135.9,135.86,0.66]
[1764097501326,3.26,135.91,135.83,0.66]
[1764097501327,11.32802049,135.91,135.83,0.66]
[1764097501525,29.72254627,135.91,135.83,0.66]
[1764097501728,29.72254627,135.91,135.83,7.42742188]
[1764097502120,10.61802049,135.91,135.83,0.66]
[1764097502327,6.76742188,135.93,135.88,6.76742188]
[1764097502530,17.018864,135.95,135.88,6.76742188]
[1764097502531,3.28,135.9,135.88,6.76742188]
[1764097502737,3.28,135.92,135.9,25.75423104]
[1764097502946,18.3845029,135.99,135.91,7.42742188]
[1764097503250,6.76742188,135.97,135.91,0.66]
[1764097503452,19.588864,135.98,135.91,0.66]
[1764097503453,6.76742188,135.96,135.91,7.42742188]
[1764097503645,3.28,135.95,135.92,0.66]
[1764097504156,3.28,135.95,135.93,6.76742188]
[1764097504336,6.76742188,136.0,135.94,6.76742188]
[1764097504651,3.28,135.99,135.96,6.76742188]
[1764097504853,6.76742188,136.02,135.97,0.66]
[1764097505061,6.76742188,136.03,135.98,6.76742188]
[1764097505243,3.28,136.02,135.99,6.76742188]
[1764097505434,3.28,136.02,136.0,6.76742188]
[1764097505753,3.28,136.02,136.0,7.42742188]
[1764097505923,17.66,136.12,136.01,7.42742188]
[1764097506123,6.76742188,136.1,136.05,6.76742188]
[1764097506430,25.37375115,136.12,136.08,6.76742188]
[1764097506851,3.28,136.12,136.09,14.11550035]
[1764097507058,6.76742188,136.16,136.11,6.76742188]
[1764097507358,8.05311394,136.19,136.15,6.76742188]
[1764097507359,16.968864,136.19,136.15,6.76742188]
[1764097507560,3.28,136.2,136.17,6.76742188]
[1764097508166,3.28,136.23,136.19,6.76742188]
[1764097508374,3.28,136.23,136.22,6.76742188]
[1764097508534,3.48,136.26,136.22,6.76742188]
[1764097508739,0.2,136.26,136.24,14.10741013]
[1764097509058,0.2,136.26,136.25,6.76742188]
[1764097509424,0.2,136.26,136.25,0.66]
[1764097509637,0.2,136.26,136.22,8.00093379]
[1764097509962,0.2,136.26,136.24,6.76742188]
[1764097510165,0.2,136.26,136.23,0.66]
[1764097510166,0.2,136.26,136.25,0.66]
[1764097511823,0.2,136.26,136.25,14.76687142]
[1764097512029,0.2,136.26,136.22,14.76839605]
[1764097512260,0.2,136.26,136.19,0.66]
[1764097512261,6.76742188,136.24,136.19,0.66]
[1764097512431,6.76742188,136.24,136.19,7.42742188]
[1764097512830,6.76742188,136.24,136.2,8.00178673]
[1764097513044,6.76742188,136.23,136.2,0.66]
[1764097513231,6.76742188,136.21,136.15,7.34475365]
[1764097513558,3.28,136.2,136.15,0.66]
[1764097513749,6.76742188,136.17,136.15,0.66]
[1764097515242,6.76742188,136.16,136.12,0.66]
[1764097515548,0.71,136.19,136.12,0.66]
[1764097515761,6.76742188,136.14,136.12,0.66]
[1764097516050,6.76742188,136.16,136.12,0.66]
[1764097516284,3.28,136.2,136.13,6.76742188]
[1764097516433,6.76742188,136.17,136.12,14.77373811]
[1764097516632,6.76742188,136.17,136.13,0.66]
[1764097516831,6.76742188,136.18,136.14,7.34537975]
[1764097517333,3.28,136.2,136.14,7.34537975]
[1764097517334,6.76742188,136.19,136.15,0.66]
[1764097517534,6.76742188,136.18,136.15,0.66]
[1764097517746,6.76742188,136.17,136.15,0.66]
[1764097518254,6.76742188,136.19,136.15,0.66]
[1764097518438,6.76742188,136.18,136.15,0.66]
[1764097518845,6.76742188,136.18,136.15,8.00476395]
[1764097519045,3.28,136.2,136.15,8.00476395]
[1764097519233,6.76742188,136.19,136.16,0.66]
[1764097520053,10.04742188,136.2,136.16,0.66]
[1764097520261,6.76742188,136.19,136.16,0.66]
[1764097520558,3.28,136.2,136.16,7.42742188]
[1764097520760,6.76742188,136.22,136.17,6.76742188]
[1764097520961,10.04742188,136.24,136.19,6.76742188]
[1764097521483,3.28,136.24,136.22,6.76742188]
[1764097521781,3.28,136.24,136.21,6.76742188]
[1764097522263,6.76742188,136.22,136.18,26.36127771]
[1764097522568,6.76742188,136.21,136.18,26.36127771]
[1764097522739,6.76742188,136.2,136.17,8.0036764]
[1764097523152,6.76742188,136.2,136.15,25.12837981]
[1764097523356,6.76742188,136.21,136.18,0.7]
[1764097523562,6.76742188,136.19,136.15,7.34471555]
[1764097523855,3.28,136.19,136.15,14.11213743]
[1764097524059,3.28,136.19,136.16,0.7]
[1764097524262,10.04742188,136.19,136.16,0.7]
[1764097524760,3.28,136.19,136.16,0.7]
[1764097524947,3.28,136.19,136.16,8.04400908]
[1764097525276,10.04742188,136.19,136.16,8.04400908]
[1764097526248,3.28,136.19,136.17,0.7]
[1764097527261,3.28,136.19,136.16,7.34400908]
[1764097527646,3.28,136.19,136.17,0.7]
[1764097528443,10.04742188,136.19,136.16,7.34400908]
[1764097528662,6.76742188,136.18,136.15,7.34476325]
[1764097528975,10.04742188,136.19,136.16,0.7]